bitfinex/quotes_BTCUSD_20241010
["timestamp","ask_amount","ask_price","bid_price","bid_amount"]
[1728583227498,0.25120999,59487.0,59486.0,0.419168]
[1728583227726,0.1896,59501.0,59487.0,0.1]
[1728583227727,0.005,59493.0,59487.0,0.1]
[1728583227952,0.25120999,59490.0,59487.0,0.1]
[1728583228186,0.0873,59495.0,59487.0,0.1]
[1728583228413,0.005,59493.0,59487.0,0.1]
[1728583228686,0.25120999,59490.0,59487.0,0.1]
[1728583228926,0.0823,59495.0,59483.0,0.1]
[1728583229159,0.25120999,59493.0,59489.0,0.1]
[1728583229628,0.005,59491.0,59489.0,0.1]
[1728583230082,0.16504004,59490.0,59489.0,0.1]
[1728583230314,0.16504004,59490.0,59480.0,0.0030303]
[1728583230315,0.1893,59489.0,59480.0,0.0030303]
[1728583230544,0.005,59487.0,59480.0,0.0030303]
[1728583230776,0.1893,59489.0,59482.0,0.1]
[1728583231036,0.1893,59489.0,59484.0,0.1]
[1728583231268,0.25120999,59488.0,59484.0,0.1]
[1728583231504,0.1893,59489.0,59484.0,0.1]
[1728583231735,0.25120999,59487.0,59484.0,0.1]
[1728583231967,0.16504028,59486.0,59484.0,0.1]
[1728583232196,0.25620999,59487.0,59480.0,0.0030303]
[1728583232197,0.005,59485.0,59480.0,0.0030303]
[1728583232688,0.005,59485.0,59481.0,0.01557186]
[1728583232921,0.005,59487.0,59481.0,0.01557186]
[1728583233148,0.25120999,59484.0,59482.0,0.01557186]
[1728583233375,0.005,59488.0,59483.0,0.01557186]
[1728583233602,0.1893,59489.0,59484.0,0.11557186]
[1728583233603,0.1943,59489.0,59484.0,0.11557186]
[1728583233827,0.1943,59489.0,59485.0,0.01557186]
[1728583234055,0.005,59487.0,59486.0,0.01557186]
[1728583235023,0.005,59487.0,59486.0,0.01560651]
[1728583235474,0.17004037,59487.0,59486.0,0.01560651]
[1728583235933,0.18859085,59489.0,59486.0,0.01560651]
[1728583236154,0.18859085,59489.0,59487.0,0.01560651]
[1728583236155,0.16083764,59488.0,59487.0,0.01560651]
[1728583236353,0.18859085,59489.0,59487.0,0.01560651]
[1728583236614,0.34942849,59489.0,59488.0,0.04061016]
[1728583238452,0.34942849,59489.0,59488.0,0.02500499]
[1728583238699,0.34942849,59489.0,59488.0,0.04063311]
[1728583239194,0.16083764,59489.0,59488.0,0.04163311]
[1728583239441,0.1861,59516.0,59506.0,0.005]
[1728583239442,0.25120999,59510.0,59506.0,0.005]
[1728583239681,0.24832878,59510.0,59509.0,0.268041]
[1728583239914,0.24832878,59510.0,59509.0,0.30867411]
[1728583240153,0.24832878,59510.0,59509.0,0.58699711]
[1728583240387,0.25120999,59516.0,59510.0,0.1]
[1728583240610,0.25120999,59516.0,59512.0,0.1]
[1728583240846,0.25120999,59516.0,59514.0,0.1]
[1728583241065,0.25120999,59516.0,59515.0,0.02500499]
[1728583241299,0.24605241,59516.0,59515.0,0.02500499]
[1728583241519,0.25120999,59522.0,59515.0,0.02500499]
[1728583241751,0.25120999,59522.0,59516.0,0.02500499]
[1728583241988,0.25120999,59522.0,59512.0,0.16083764]
[1728583241989,0.25120999,59522.0,59517.0,0.02500499]
[1728583242214,0.1861,59529.0,59518.0,0.02500499]
[1728583242215,0.00419998,59527.0,59518.0,0.02500499]
[1728583242485,0.00419998,59527.0,59513.0,0.1]
[1728583242749,0.1861,59529.0,59515.0,0.128]
[1728583242983,0.1861,59529.0,59517.0,0.1]
[1728583243231,0.1861,59529.0,59519.0,0.268013]
[1728583243471,0.1861,59529.0,59519.0,0.42885064]
[1728583243729,0.25120999,59540.0,59519.0,0.42885064]
[1728583243730,0.25120999,59527.0,59519.0,1.80582751]
[1728583244029,0.25120999,59540.0,59519.0,1.80582751]
[1728583244270,0.25120999,59540.0,59533.0,0.167974]
[1728583244545,0.25120999,59540.0,59533.0,0.94443251]
[1728583244779,0.25120999,59540.0,59539.0,0.167957]
[1728583245035,0.25120999,59540.0,59539.0,0.42879464]
[1728583245286,0.1927,59555.0,59546.0,0.1]
[1728583245287,0.00568398,59552.0,59546.0,0.1]
[1728583245536,0.00568398,59552.0,59549.0,0.1]
[1728583245787,0.1927,59555.0,59551.0,0.1]
[1728583246009,0.1927,59555.0,59552.0,0.01561178]
[1728583246270,0.1927,59555.0,59553.0,0.01561178]
[1728583246500,0.1927,59555.0,59551.0,0.26083764]
[1728583246501,0.25120999,59554.0,59551.0,0.1]
[1728583246755,0.25120999,59564.0,59551.0,0.1]
[1728583246994,0.25120999,59564.0,59551.0,0.27483764]
[1728583246995,0.001,59555.0,59551.0,0.27483764]
[1728583247224,0.001,59555.0,59551.0,0.114]
[1728583247490,0.001,59555.0,59551.0,0.014]
[1728583247716,0.001,59555.0,59540.0,0.25120999]
[1728583247717,0.42673764,59554.0,59540.0,0.25120999]
[1728583247967,0.42673764,59554.0,59546.0,0.25120999]
[1728583248231,0.42673764,59554.0,59533.0,0.25120999]
[1728583248232,0.25120999,59553.0,59533.0,0.25120999]
[1728583248460,0.25120999,59547.0,59533.0,0.25120999]
[1728583248727,0.33797374,59546.0,59539.0,0.25120999]
[1728583248975,0.167951,59541.0,59540.0,0.01]
[1728583249234,0.167951,59541.0,59527.0,0.25120999]
[1728583249235,0.335917,59539.0,59527.0,0.25120999]
[1728583249496,0.24783707,59541.0,59527.0,0.25120999]
[1728583249497,0.005,59537.0,59527.0,0.25120999]
[1728583249725,0.005,59537.0,59533.0,0.028]
[1728583249726,0.16503737,59536.0,59533.0,0.028]
[1728583250247,0.16503737,59536.0,59533.0,0.014]
[1728583250464,0.16797,59535.0,59533.0,0.014]
[1728583250690,0.16503736,59534.0,59533.0,0.014]
[1728583251372,0.419707,59541.0,59527.0,0.25120999]
[1728583251373,0.0778,59541.0,59527.0,0.25120999]
[1728583251647,0.25220999,59539.0,59527.0,0.009]
[1728583251870,0.001,59535.0,59527.0,0.009]
[1728583252088,0.25120999,59539.0,59522.0,0.1]
[1728583252313,0.25120999,59539.0,59522.0,0.26083764]
[1728583252507,0.001,59534.0,59522.0,0.26083764]
[1728583252758,0.001,59534.0,59524.0,0.1]
[1728583252985,0.25120999,59539.0,59524.0,0.1]
[1728583252986,0.25120999,59539.0,59526.0,0.1]
[1728583253209,0.25120999,59547.0,59525.0,0.16083764]
[1728583253210,0.25120999,59538.0,59528.0,0.1]
[1728583253427,0.25120999,59532.0,59530.0,0.1]
[1728583253654,0.25120999,59538.0,59530.0,0.1]
[1728583253908,16.2083194,59500.0,59499.0,0.123]
[1728583254137,16.1985194,59500.0,59499.0,6.54347]
[1728583254358,16.1985194,59500.0,59499.0,6.55960562]
[1728583254582,16.1985194,59500.0,59499.0,6.48492682]
[1728583255251,16.1985194,59500.0,59499.0,6.64576446]
[1728583255470,16.1995194,59500.0,59499.0,6.65176446]
[1728583255684,16.1995194,59500.0,59499.0,6.47804646]
[1728583255901,16.1985194,59500.0,59499.0,5.83164146]
[1728583256137,16.2005194,59500.0,59499.0,2.63780253]
[1728583256591,16.16266391,59500.0,59499.0,2.63780253]
[1728583257269,16.16266391,59500.0,59499.0,1.96973253]
[1728583257488,16.16266391,59500.0,59499.0,1.13861553]
[1728583257729,16.16066391,59500.0,59499.0,0.67510053]
[1728583258002,16.16066391,59500.0,59499.0,0.00287889]
[1728583258226,16.16066391,59500.0,59499.0,0.02087889]
[1728583258227,16.16266391,59500.0,59499.0,0.02087889]
[1728583258421,16.16266391,59500.0,59499.0,0.01487889]
[1728583258422,16.16166391,59500.0,59499.0,0.01487889]
[1728583258675,16.16066391,59500.0,59491.0,0.168906]
[1728583258903,16.16166391,59500.0,59499.0,0.006]
[1728583259177,16.16166391,59500.0,59499.0,0.012]
[1728583259401,16.16266391,59500.0,59499.0,0.018]
[1728583259628,16.16166391,59500.0,59492.0,0.16083764]
[1728583259844,16.16166391,59500.0,59493.0,2.089688]
[1728583260067,16.16166391,59500.0,59495.0,0.1]
[1728583260291,16.16166391,59500.0,59496.0,0.28051]
[1728583260511,16.16166391,59500.0,59497.0,0.1]
[1728583260973,16.16166391,59500.0,59496.0,0.16083764]
[1728583260974,16.16266391,59500.0,59499.0,0.26807]
[1728583261208,16.16366391,59500.0,59499.0,1.726506]
[1728583261436,16.35086391,59500.0,59499.0,0.1]
[1728583261711,16.34886391,59500.0,59499.0,0.100814]
[1728583261946,16.34986391,59500.0,59499.0,0.000814]
[1728583262411,16.35686391,59500.0,59499.0,0.000814]
[1728583262638,16.35686391,59500.0,59499.0,0.006814]
[1728583262639,16.43216391,59500.0,59499.0,0.006814]
[1728583262863,16.43116391,59500.0,59499.0,0.000814]
[1728583263569,16.7538207,59500.0,59499.0,0.000814]
[1728583263803,16.7538207,59500.0,59491.0,0.000815]
[1728583263804,0.007,59492.0,59491.0,0.000815]
[1728583264036,0.35503764,59492.0,59491.0,0.000815]
[1728583264321,0.007,59489.0,59488.0,0.0001]
[1728583264547,0.16783764,59489.0,59488.0,0.0001]
[1728583265000,0.49049443,59489.0,59488.0,0.0001]
[1728583265694,0.65859243,59489.0,59488.0,0.0001]
[1728583266164,0.65859243,59489.0,59482.0,0.000815]
[1728583266165,0.007,59483.0,59482.0,0.000815]
[1728583266428,0.16783764,59483.0,59482.0,0.000815]
[1728583266684,0.49469769,59483.0,59482.0,0.000815]
[1728583266945,0.49469769,59483.0,59480.0,0.0186369]
[1728583266946,0.007,59481.0,59480.0,0.0030303]
[1728583267198,0.17204119,59481.0,59480.0,0.0030303]
[1728583267423,0.007,59481.0,59480.0,0.0030303]
[1728583267661,0.005,59481.0,59480.0,0.0030303]
[1728583268085,0.007,59481.0,59480.0,0.0186369]
[1728583268341,0.32765679,59481.0,59480.0,0.0030303]
[1728583268569,0.32765679,59481.0,59480.0,0.0186369]
[1728583269493,0.48849443,59481.0,59480.0,0.01861711]
[1728583269721,0.49149443,59481.0,59480.0,0.0070303]
[1728583270681,0.001,59481.0,59480.0,0.0070303]
[1728583270901,0.002,59481.0,59480.0,0.02961423]
[1728583271347,0.32465679,59481.0,59480.0,0.02961423]
[1728583271567,0.32765679,59481.0,59480.0,0.01861423]
[1728583271790,0.32965679,59481.0,59480.0,0.02961423]
[1728583272014,0.32465679,59481.0,59480.0,0.02961423]
[1728583272460,0.32965679,59481.0,59480.0,0.02961423]
[1728583272688,0.001,59481.0,59480.0,0.74550923]
[1728583272917,0.002,59481.0,59480.0,0.35713323]
[1728583273168,0.002,59481.0,59480.0,0.02961423]
[1728583273617,0.32965679,59481.0,59480.0,0.02961423]
[1728583273852,0.33165679,59481.0,59480.0,0.02961423]
[1728583274091,0.32965679,59481.0,59480.0,0.03042923]
[1728583276151,0.32865679,59481.0,59480.0,0.02642923]
[1728583276381,0.32765679,59481.0,59480.0,0.01942923]
[1728583276604,0.32865679,59481.0,59480.0,0.02342923]
[1728583276823,0.32965679,59481.0,59480.0,0.03142923]
[1728583277349,0.51455679,59481.0,59480.0,0.02342923]
[1728583277572,0.51555679,59481.0,59480.0,0.03142923]
[1728583278015,0.51555679,59481.0,59480.0,0.02342923]
[1728583278016,0.51455679,59481.0,59480.0,0.02342923]
[1728583278261,0.51355679,59481.0,59480.0,0.01942923]
[1728583278503,0.51455679,59481.0,59480.0,0.02642923]
[1728583278748,0.1919,59481.0,59480.0,0.02642923]
[1728583278992,0.51980999,59493.0,59482.0,0.1]
[1728583279238,0.25120999,59484.0,59482.0,0.1]
[1728583279481,0.51480999,59493.0,59482.0,0.1]
[1728583279482,0.51980999,59493.0,59483.0,0.01561514]
[1728583279725,0.25620999,59487.0,59483.0,0.01561514]
[1728583279955,0.32265679,59486.0,59484.0,0.01561514]
[1728583280211,0.32265679,59486.0,59480.0,0.0138453]
[1728583280212,0.32265679,59486.0,59485.0,0.01561514]
[1728583281416,0.3238257,59486.0,59485.0,0.02561514]
[1728583281895,0.3238257,59486.0,59485.0,0.99308414]
[1728583281896,0.001,59486.0,59485.0,0.99308414]
[1728583282135,0.25120999,59492.0,59486.0,0.1]
[1728583282380,0.25120999,59492.0,59487.0,0.01561514]
[1728583282640,0.25120999,59492.0,59489.0,0.1]
[1728583282893,16.21271408,59500.0,59489.0,0.1]
[1728583282894,16.21271408,59500.0,59491.0,0.1]
[1728583283122,16.21271408,59500.0,59490.0,0.84792478]
[1728583283123,0.25120999,59499.0,59498.0,0.5908977]
[1728583283363,16.21271408,59500.0,59499.0,1.955303]
[1728583283598,16.21271408,59500.0,59499.0,2.02079051]
[1728583283845,16.21271408,59500.0,59499.0,1.97091814]
[1728583284080,16.21271408,59500.0,59499.0,1.47257014]
[1728583284309,16.21271408,59500.0,59499.0,0.79850078]
[1728583284529,16.21271408,59500.0,59499.0,0.84834899]
[1728583284813,16.21271408,59500.0,59499.0,0.79850078]
[1728583285033,16.21271408,59500.0,59499.0,0.84834899]
[1728583285265,16.21271408,59500.0,59499.0,0.83273385]
[1728583285498,16.21271408,59500.0,59499.0,0.84839929]
[1728583285726,16.21271408,59500.0,59499.0,0.84921429]
[1728583286237,16.21271408,59500.0,59499.0,0.79936608]
[1728583286500,16.21271408,59500.0,59499.0,0.81336608]
[1728583286729,16.21271408,59500.0,59499.0,0.83767937]
[1728583287410,16.21271408,59500.0,59499.0,0.85167937]
[1728583287877,16.21271408,59500.0,59499.0,0.83767937]
[1728583288105,16.21271408,59500.0,59499.0,0.87352758]
[1728583288331,16.21371408,59500.0,59499.0,0.88752758]
[1728583288601,16.21371408,59500.0,59499.0,1.22435328]
[1728583289151,16.21271408,59500.0,59499.0,1.16050507]
[1728583289351,16.21371408,59500.0,59499.0,1.22617871]
[1728583289598,16.21371408,59500.0,59499.0,1.23794887]
[1728583289961,14.8759364,59500.0,59499.0,1.36194887]
[1728583290346,14.8759364,59500.0,59499.0,1.31027523]
[1728583290347,14.68937107,59500.0,59499.0,1.31027523]
[1728583290586,14.50230607,59500.0,59499.0,1.19750507]
[1728583290801,14.16865257,59500.0,59499.0,1.3729482]
[1728583291023,14.16191879,59500.0,59499.0,1.0329702]
[1728583291240,14.10276879,59500.0,59499.0,2.14475957]
[1728583291465,13.93470379,59500.0,59499.0,2.14475957]
[1728583291683,13.61444062,59500.0,59499.0,2.13075957]
[1728583291897,13.61444062,59500.0,59499.0,2.14475957]
[1728583292116,13.61444062,59500.0,59499.0,1.77326843]
[1728583292388,13.55657671,59500.0,59499.0,6.10498814]
[1728583292609,12.47113734,59500.0,59499.0,6.38656244]
[1728583292837,11.96634926,59500.0,59499.0,6.20966244]
[1728583293053,11.46156118,59500.0,59499.0,6.22136244]
[1728583293506,11.46156118,59500.0,59499.0,1.18036244]
[1728583293507,10.8559341,59500.0,59499.0,1.18036244]
[1728583293734,10.80718176,59500.0,59499.0,6.68040244]
[1728583293954,10.80718176,59500.0,59499.0,6.66640244]
[1728583294203,10.48255186,59500.0,59499.0,6.79140244]
[1728583294455,10.34809986,59500.0,59499.0,7.16130244]
[1728583294675,10.31448686,59500.0,59499.0,7.16130244]
[1728583294905,10.31448686,59500.0,59499.0,2.40898844]
[1728583295131,10.31432686,59500.0,59499.0,2.42298844]
[1728583295605,9.43096749,59500.0,59499.0,2.40898844]
[1728583295830,9.43096749,59500.0,59499.0,2.42298844]
[1728583296052,9.43096749,59500.0,59499.0,2.40898844]
[1728583296563,9.36374149,59500.0,59499.0,2.42298844]
[1728583296807,9.24776315,59500.0,59499.0,7.46121828]
[1728583297028,9.24776315,59500.0,59499.0,7.94721828]
[1728583297257,9.24776315,59500.0,59499.0,7.84121828]
[1728583297485,9.23697848,59500.0,59499.0,2.67051828]
[1728583297716,9.23697848,59500.0,59499.0,7.6548349]
[1728583298193,9.23697848,59500.0,59499.0,7.6408349]
[1728583298421,9.23697848,59500.0,59499.0,8.1184539]
[1728583298664,9.23697848,59500.0,59499.0,8.05178093]
[1728583299123,9.23697848,59500.0,59499.0,8.06578093]
[1728583299397,9.23697848,59500.0,59499.0,5.05054893]
[1728583299643,9.23697848,59500.0,59499.0,4.63443193]
[1728583299896,9.23697848,59500.0,59499.0,4.13443193]
[1728583300231,9.23697848,59500.0,59499.0,4.12043193]
[1728583300433,9.23697848,59500.0,59499.0,4.45681115]
[1728583300686,9.23797848,59500.0,59499.0,4.47081115]
[1728583300956,9.23697848,59500.0,59499.0,4.54260442]
[1728583301181,9.23697848,59500.0,59499.0,4.55662615]
[1728583301431,9.23797848,59500.0,59499.0,4.47081115]
[1728583301670,9.23797848,59500.0,59499.0,4.14331115]
[1728583302119,9.23797848,59500.0,59499.0,3.83493193]
[1728583302348,9.23897848,59500.0,59499.0,4.34893193]
[1728583302586,9.15131194,59500.0,59499.0,4.38817459]
[1728583302841,8.76039578,59500.0,59499.0,4.6003121]
[1728583303070,8.18640552,59500.0,59499.0,2.2604161]
[1728583303301,8.16368801,59500.0,59499.0,2.26765876]
[1728583303516,8.09646201,59500.0,59499.0,2.60403798]
[1728583303748,7.97396301,59500.0,59499.0,2.60403798]
[1728583304033,7.92213301,59500.0,59499.0,2.58779532]
[1728583304262,7.82013301,59500.0,59499.0,7.4942592]
[1728583304513,7.82013301,59500.0,59499.0,7.21504282]
[1728583304734,7.82013301,59500.0,59499.0,6.98020281]
[1728583304953,7.82013301,59500.0,59499.0,6.96620281]
[1728583305175,7.82013301,59500.0,59499.0,7.12976716]
[1728583305428,7.82013301,59500.0,59499.0,6.98020281]
[1728583305907,7.82013301,59500.0,59499.0,7.16000982]
[1728583306359,7.82013301,59500.0,59499.0,6.97120281]
[1728583307042,7.82013301,59500.0,59499.0,6.95720281]
[1728583307463,7.82013301,59500.0,59499.0,6.55920281]
[1728583307958,7.82013301,59500.0,59499.0,5.90772264]
[1728583308182,7.82013301,59500.0,59499.0,3.81853964]
[1728583308402,8.01193301,59500.0,59499.0,1.26055264]
[1728583308630,8.01193301,59500.0,59499.0,1.24655264]
[1728583309551,8.01193301,59500.0,59499.0,1.36005264]
[1728583309770,8.01193301,59500.0,59499.0,1.40991006]
[1728583310000,8.01193301,59500.0,59499.0,1.36005264]
[1728583310485,8.01193301,59500.0,59499.0,4.20472764]
[1728583310685,8.01193301,59500.0,59499.0,4.09519164]
[1728583310926,8.01293301,59500.0,59499.0,2.70525964]
[1728583311161,8.01293301,59500.0,59499.0,2.44024326]
[1728583311402,8.01193301,59500.0,59499.0,2.37738864]
[1728583311652,8.01293301,59500.0,59499.0,2.37738864]
[1728583312118,8.01393301,59500.0,59499.0,2.39138864]
[1728583312347,8.01393301,59500.0,59499.0,2.36338864]
[1728583312348,8.01293301,59500.0,59499.0,2.36338864]
[1728583312573,7.82013301,59500.0,59499.0,2.43820579]
[1728583312804,7.82013301,59500.0,59499.0,2.36338864]
[1728583313240,7.82013301,59500.0,59499.0,2.42903473]
[1728583313461,7.82013301,59500.0,59499.0,2.55367089]
[1728583313694,7.82113301,59500.0,59499.0,2.44303473]
[1728583314364,7.82113301,59500.0,59499.0,2.42903473]
[1728583314592,7.64919801,59500.0,59499.0,2.54561747]
[1728583314823,7.65019801,59500.0,59499.0,2.57361747]
[1728583315035,7.65019801,59500.0,59499.0,0.58046109]
[1728583315249,7.65019801,59500.0,59499.0,0.56473139]
[1728583315501,7.65019801,59500.0,59499.0,0.514815]
[1728583315786,8.1463403,59500.0,59499.0,0.514815]
[1728583316006,8.1463403,59500.0,59499.0,0.500815]
[1728583316460,8.1463403,59500.0,59499.0,0.614815]
[1728583316886,8.1463403,59500.0,59499.0,0.796885]
[1728583317114,7.64919801,59500.0,59499.0,1.091714]
[1728583317370,7.64919801,59500.0,59499.0,1.060381]
[1728583317602,7.64919801,59500.0,59499.0,0.918826]
[1728583318037,7.64919801,59500.0,59499.0,0.925826]
[1728583318303,7.64919801,59500.0,59499.0,1.00068831]
[1728583319882,7.64919801,59500.0,59499.0,0.90068831]
[1728583320103,7.64919801,59500.0,59499.0,0.513815]
[1728583320355,7.64919801,59500.0,59492.0,0.07500994]
[1728583320356,0.1926,59494.0,59492.0,0.07500994]
[1728583320610,0.0791,59499.0,59485.0,0.07500994]
[1728583320611,0.00920237,59493.0,59485.0,0.07500994]
[1728583320874,0.00920237,59493.0,59480.0,0.0038453]
[1728583320875,0.1876,59488.0,59480.0,0.00676486]
[1728583321121,0.005,59489.0,59480.0,0.0038453]
[1728583321122,0.1876,59486.0,59480.0,0.0038453]
[1728583321343,0.68474229,59486.0,59481.0,0.399518]
[1728583321576,0.68474229,59486.0,59482.0,0.344948]
[1728583321805,0.68474229,59486.0,59480.0,0.3400883]
[1728583322026,0.25120999,59485.0,59482.0,0.1]
[1728583322252,0.26041263,59485.0,59480.0,0.0118453]
[1728583322471,0.005,59483.0,59480.0,0.0118453]
[1728583322685,0.005,59483.0,59480.0,0.5118453]
[1728583323171,0.49714229,59481.0,59480.0,0.5188453]
[1728583323622,0.49714229,59481.0,59480.0,0.6118453]
[1728583323851,0.49714229,59481.0,59480.0,0.6068453]
[1728583324074,0.49714229,59481.0,59480.0,0.6038453]
[1728583324324,0.67894229,59481.0,59480.0,0.6138453]
[1728583324568,0.67894229,59481.0,59478.0,0.00026609]
[1728583324569,0.005,59479.0,59478.0,0.00026609]
[1728583324813,0.005,59479.0,59466.0,0.22458692]
[1728583324814,0.081,59469.0,59460.0,0.00292047]
[1728583325058,0.41625157,59479.0,59458.0,0.00228]
[1728583325059,0.005,59459.0,59458.0,0.00228]
[1728583325297,0.005,59456.0,59450.0,0.005]
[1728583325546,0.0911,59454.0,59450.0,0.005]
[1728583325832,0.0911,59454.0,59440.0,0.00258]
[1728583325833,0.17630757,59447.0,59440.0,0.00258]
[1728583326085,0.50214229,59441.0,59440.0,0.00258]
[1728583326326,0.50214229,59441.0,59428.0,0.000815]
[1728583326327,0.168241,59439.0,59428.0,0.000815]
[1728583326564,0.16083764,59446.0,59425.0,0.000946]
[1728583326565,0.170263,59431.0,59425.0,0.000946]
[1728583326829,0.005,59443.0,59425.0,0.000946]
[1728583326830,0.07920742,59430.0,59425.0,0.000946]
[1728583327071,0.25120999,59428.0,59425.0,0.000946]
[1728583327301,0.41125478,59427.0,59421.0,0.0159428]
[1728583327527,0.75255968,59426.0,59421.0,0.0159428]
[1728583327774,0.00420753,59425.0,59421.0,0.0159428]
[1728583328010,0.16504517,59425.0,59421.0,0.0159428]
[1728583328256,0.41204763,59424.0,59421.0,0.0159428]
[1728583328515,0.16083764,59424.0,59423.0,1.0002]
[1728583328745,0.16504522,59424.0,59423.0,1.0002]
[1728583328977,0.36094522,59424.0,59423.0,1.0002]
[1728583329211,0.35673764,59424.0,59423.0,0.8002]
[1728583329441,0.35673764,59424.0,59421.0,0.0159428]
[1728583329442,0.175285,59423.0,59421.0,0.0159428]
[1728583329676,0.34033103,59423.0,59421.0,0.0159428]
[1728583329904,0.16083764,59423.0,59421.0,0.0159428]
[1728583330149,0.42125573,59423.0,59421.0,0.0159428]
[1728583330382,0.336576,59422.0,59416.0,0.02545337]
[1728583330623,0.16504619,59421.0,59416.0,0.02545337]
[1728583330884,0.49714229,59417.0,59416.0,0.00588367]
[1728583331155,0.65797993,59417.0,59416.0,0.00588367]
[1728583331845,0.49714229,59417.0,59416.0,0.00588367]
[1728583333016,0.49714229,59417.0,59415.0,0.00051636]
[1728583333238,0.50514229,59417.0,59416.0,0.001]
[1728583333724,0.50514229,59417.0,59416.0,0.269304]
[1728583333952,0.50514229,59417.0,59416.0,0.277304]
[1728583333953,0.50614229,59417.0,59416.0,0.277304]
[1728583334413,0.50614229,59417.0,59416.0,0.72241264]
[1728583334414,0.009,59417.0,59416.0,0.72241264]
[1728583334648,0.25120999,59425.0,59424.0,0.268282]
[1728583334877,0.74835228,59425.0,59424.0,0.268282]
[1728583335589,0.49714229,59425.0,59424.0,0.268282]
[1728583335814,0.49714229,59425.0,59424.0,0.1]
[1728583336037,0.49714229,59425.0,59422.0,0.1]
[1728583336290,0.49714229,59425.0,59421.0,0.268289]
[1728583336508,0.49714229,59425.0,59419.0,0.336591]
[1728583336509,0.50014229,59425.0,59420.0,0.1]
[1728583336733,0.50014229,59425.0,59422.0,0.268287]
[1728583336965,0.50014229,59425.0,59424.0,0.268282]
[1728583337206,0.50014229,59425.0,59424.0,0.1]
[1728583337464,0.49814229,59425.0,59424.0,0.1]
[1728583337913,0.49714229,59425.0,59424.0,0.1]
[1728583338155,0.49714229,59425.0,59422.0,0.001]
[1728583338379,0.49714229,59425.0,59424.0,0.168282]
[1728583338637,0.49714229,59425.0,59424.0,0.1]
[1728583339581,0.49814229,59425.0,59424.0,0.008]
[1728583339799,0.49914229,59425.0,59424.0,0.019]
[1728583340028,0.49914229,59425.0,59424.0,0.008]
[1728583340298,0.49914229,59425.0,59424.0,0.176282]
[1728583340575,0.50014229,59425.0,59424.0,0.287282]
[1728583340812,0.25120999,59444.0,59425.0,0.1826]
[1728583341063,0.25120999,59444.0,59435.0,0.1]
[1728583341333,0.00420577,59443.0,59438.0,0.168242]
[1728583341629,0.00420577,59443.0,59439.0,0.1]
[1728583341859,0.00420577,59443.0,59427.0,0.1]
[1728583342088,0.16083764,59442.0,59427.0,0.1]
[1728583342333,0.00420694,59441.0,59427.0,0.1]
[1728583342554,0.00420694,59441.0,59429.0,0.168266]
[1728583342782,0.25120999,59437.0,59433.0,0.1]
[1728583343032,0.25120999,59437.0,59429.0,0.1]
[1728583343033,0.00420664,59436.0,59431.0,0.168261]
[1728583343277,0.00420664,59436.0,59425.0,0.336553]
[1728583343278,0.00420664,59436.0,59432.0,0.1]
[1728583343513,0.49714229,59433.0,59432.0,0.1]
[1728583343759,0.90918992,59433.0,59432.0,0.1]
[1728583343988,0.65797993,59433.0,59432.0,0.1]
[1728583344222,0.65797993,59433.0,59427.0,0.011]
[1728583344454,0.00420709,59432.0,59427.0,0.011]
[1728583344691,0.00420709,59432.0,59426.0,0.168276]
[1728583345152,0.00420709,59432.0,59427.0,0.268272]
[1728583345370,0.001,59433.0,59431.0,0.006]
[1728583345605,0.74835228,59432.0,59427.0,0.1]
[1728583345833,0.49714229,59432.0,59427.0,0.1]
[1728583346056,0.49714229,59432.0,59426.0,0.005]
[1728583346304,0.41943799,59443.0,59426.0,0.01]
[1728583346569,0.25120999,59437.0,59427.0,0.168271]
[1728583346817,0.16083764,59436.0,59427.0,0.172272]
[1728583347058,0.16083764,59436.0,59428.0,0.1]
[1728583347307,0.25120999,59443.0,59428.0,0.604806]
[1728583347308,0.49714229,59429.0,59428.0,0.604806]
[1728583348043,0.49714229,59429.0,59428.0,0.76564364]
[1728583348286,0.25120999,59443.0,59430.0,0.1]
[1728583348514,0.25120999,59443.0,59442.0,0.168231]
[1728583348755,0.25120999,59450.0,59442.0,0.344431]
[1728583348990,0.25120999,59456.0,59442.0,0.344431]
[1728583348991,0.25120999,59456.0,59443.0,0.2965]
[1728583349258,0.25120999,59456.0,59455.0,0.268194]
[1728583349515,0.25120999,59456.0,59455.0,1.411027]
[1728583349770,0.25120999,59456.0,59455.0,1.071025]
[1728583350041,0.25120999,59467.0,59462.0,0.1]
[1728583350249,0.25120999,59467.0,59461.0,0.532854]
[1728583350250,0.25120999,59467.0,59466.0,0.268163]
[1728583350477,0.25120999,59467.0,59466.0,0.810896]
[1728583350730,0.33617,59494.0,59466.0,0.810896]
[1728583350731,0.25120999,59484.0,59483.0,0.1]
[1728583350972,0.25120999,59484.0,59483.0,0.268115]
[1728583351455,0.00420257,59491.0,59483.0,0.1]
[1728583351725,0.25120999,59490.0,59489.0,0.1]
[1728583351964,7.64919801,59500.0,59489.0,2.78084064]
[1728583352191,7.64919801,59500.0,59498.0,0.268072]
[1728583352437,7.64919801,59500.0,59499.0,0.1]
[1728583352659,7.64919801,59500.0,59499.0,3.28733564]
[1728583352918,7.64919801,59500.0,59499.0,1.41675]
[1728583353164,7.64919801,59500.0,59499.0,0.095]
[1728583353636,7.64919801,59500.0,59494.0,0.168082]
[1728583354073,0.00420195,59499.0,59489.0,0.014]
[1728583354589,0.16083764,59498.0,59489.0,0.014]
[1728583354821,0.16083764,59498.0,59464.0,0.25120999]
[1728583354822,0.49744765,59490.0,59479.0,0.168124]
[1728583355058,0.00420294,59489.0,59482.0,0.25120999]
[1728583355313,0.00420294,59489.0,59477.0,0.336258]
[1728583355543,0.00420294,59496.0,59480.0,0.336244]
[1728583355795,0.25120999,59493.0,59483.0,0.33623]
[1728583356038,0.25120999,59499.0,59484.0,0.62238764]
[1728583356261,0.25120999,59492.0,59491.0,0.268092]
[1728583356761,0.0042021,59498.0,59495.0,0.168079]
[1728583356953,0.0042021,59498.0,59494.0,0.1]
[1728583357425,0.002,59491.0,59480.0,0.336245]
[1728583357653,0.16083764,59497.0,59491.0,0.002]
[1728583357654,0.002,59495.0,59491.0,0.002]
[1728583357896,7.64919801,59500.0,59491.0,0.002]
[1728583357897,0.00420294,59498.0,59491.0,0.002]
[1728583358158,7.64919801,59500.0,59492.0,0.336178]
[1728583358159,0.25120999,59499.0,59492.0,0.336178]
[1728583358381,7.64919801,59500.0,59499.0,0.16807]
[1728583358836,7.64919801,59500.0,59499.0,0.630906]